[Event "Late-Titled-Tuesday-Blitz-May-28-2024"]
[Site "Chess.com"]
[Date "2024.05.28"]
[Round "6"]
[White "RebecaJimnz"]
[Black "lrjchess"]
[Result "0-1"]
[WhiteElo "2303"]
[BlackElo "2486"]
[TimeControl "180+1"]
[EndTime "15:05:01 PDT"]
[Termination "lrjchess won by resignation"]

1. e4 {[%clk 0:03:00.9]} 1... c5 {[%clk 0:02:51.9]} 2. Nc3 {[%clk 0:03:00.5]}
2... g6 {[%clk 0:02:48.5]} 3. g3 {[%clk 0:03:00.9]} 3... Bg7 {[%clk 0:02:48.6]}
4. Bg2 {[%clk 0:03:01.5]} 4... Nc6 {[%clk 0:02:48.5]} 5. d3 {[%clk 0:03:02]}
5... Nf6 {[%clk 0:02:48.6]} 6. Be3 {[%clk 0:03:00.9]} 6... d6 {[%clk 0:02:48.1]}
7. h3 {[%clk 0:03:01.3]} 7... O-O {[%clk 0:02:46.2]} 8. Qd2 {[%clk 0:03:01.3]}
8... Qc7 {[%clk 0:02:46.6]} 9. Bh6 {[%clk 0:02:55.9]} 9... Rb8 {[%clk
0:02:45.3]} 10. Bxg7 {[%clk 0:02:55.7]} 10... Kxg7 {[%clk 0:02:46.2]} 11. f4
{[%clk 0:02:55.5]} 11... b5 {[%clk 0:02:44.1]} 12. Nf3 {[%clk 0:02:51.3]} 12...
b4 {[%clk 0:02:43.9]} 13. Ne2 {[%clk 0:02:50.7]} 13... Ba6 {[%clk 0:02:43.6]}
14. O-O {[%clk 0:02:47.7]} 14... c4 {[%clk 0:02:42.6]} 15. g4 {[%clk 0:02:34.4]}
15... Rfc8 {[%clk 0:02:22.1]} 16. f5 {[%clk 0:02:20.3]} 16... Ne5 {[%clk
0:02:19.2]} 17. Nxe5 {[%clk 0:02:19.8]} 17... dxe5 {[%clk 0:02:19.1]} 18. g5
{[%clk 0:02:17.9]} 18... Nh5 {[%clk 0:02:18.6]} 19. d4 {[%clk 0:02:03.4]} 19...
c3 {[%clk 0:02:11.6]} 20. bxc3 {[%clk 0:02:00.9]} 20... bxc3 {[%clk 0:02:11.6]}
21. Qe3 {[%clk 0:01:57.1]} 21... Bxe2 {[%clk 0:02:11.4]} 22. Qxe2 {[%clk
0:01:57.2]} 22... Ng3 {[%clk 0:02:12]} 23. Qf2 {[%clk 0:01:51]} 23... Nxf1
{[%clk 0:02:10.9]} 24. f6+ {[%clk 0:01:46.1]} 24... Kg8 {[%clk 0:02:10.9]} 25.
Rxf1 {[%clk 0:01:39.6]} 25... exd4 {[%clk 0:02:10.6]} 26. Qh4 {[%clk 0:01:30.7]}
26... exf6 {[%clk 0:02:03.2]} 27. gxf6 {[%clk 0:01:30.6]} 27... d3 {[%clk
0:02:03.5]} 28. Qh6 {[%clk 0:01:22.2]} 28... Qc5+ {[%clk 0:02:03]} 29. Kh1
{[%clk 0:01:16.8]} 29... Qf8 {[%clk 0:02:03]} 30. Qe3 {[%clk 0:01:09.6]} 30...
dxc2 {[%clk 0:02:02.3]} 31. e5 {[%clk 0:01:03.8]} 31... Rb1 {[%clk 0:02:01.6]}
32. e6 {[%clk 0:00:55.2]} 32... Qc5 {[%clk 0:01:55.4]} 33. exf7+ {[%clk
0:00:50.8]} 33... Kxf7 {[%clk 0:01:51.3]} 34. Bd5+ {[%clk 0:00:43.3]} 34...
Qxd5+ {[%clk 0:01:46.2]} 35. Kh2 {[%clk 0:00:28.2]} 35... Qd6+ {[%clk
0:01:43.6]} 36. Kg2 {[%clk 0:00:26.2]} 36... Rxf1 {[%clk 0:01:42.7]} 0-1

[Event "Late-Titled-Tuesday-Blitz-May-28-2024"]
[Site "Chess.com"]
[Date "2024.05.28"]
[Round "6"]
[White "2L8IWUN"]
[Black "OIAM03"]
[Result "1-0"]
[WhiteElo "2175"]
[BlackElo "2023"]
[TimeControl "180+1"]
[EndTime "15:05:02 PDT"]
[Termination "2L8IWUN won by resignation"]

1. d4 {[%clk 0:02:53.7]} 1... Nf6 {[%clk 0:02:59.2]} 2. Nf3 {[%clk 0:02:53.6]}
2... g6 {[%clk 0:02:58]} 3. g3 {[%clk 0:02:54]} 3... Bg7 {[%clk 0:02:57.8]} 4.
Bg2 {[%clk 0:02:54.9]} 4... O-O {[%clk 0:02:55.9]} 5. O-O {[%clk 0:02:55.5]}
5... d6 {[%clk 0:02:52.7]} 6. b3 {[%clk 0:02:55.5]} 6... c5 {[%clk 0:02:52.7]}
7. c4 {[%clk 0:02:55.5]} 7... Nc6 {[%clk 0:02:52.2]} 8. Bb2 {[%clk 0:02:55.1]}
8... Ne4 {[%clk 0:02:50.4]} 9. Nbd2 {[%clk 0:02:47.1]} 9... Bf5 {[%clk
0:02:29.8]} 10. e3 {[%clk 0:02:27.4]} 10... cxd4 {[%clk 0:02:20]} 11. Nxd4
{[%clk 0:02:24.7]} 11... Nxd2 {[%clk 0:02:13.4]} 12. Qxd2 {[%clk 0:02:17.2]}
12... Nxd4 {[%clk 0:02:12.9]} 13. Bxd4 {[%clk 0:02:15]} 13... Bxd4 {[%clk
0:02:03.8]} 14. Qxd4 {[%clk 0:02:15.9]} 14... Rb8 {[%clk 0:02:02.5]} 15. Qxa7
{[%clk 0:02:12.9]} 15... b5 {[%clk 0:01:52]} 16. cxb5 {[%clk 0:02:09.6]} 16...
Bd3 {[%clk 0:01:51.4]} 17. Rfc1 {[%clk 0:02:08.8]} 17... Bxb5 {[%clk 0:01:51.4]}
18. Rc7 {[%clk 0:01:56.5]} 18... e6 {[%clk 0:01:49.9]} 19. a4 {[%clk 0:01:50.9]}
19... Bd3 {[%clk 0:01:40.3]} 20. Rc3 {[%clk 0:01:46]} 20... Be2 {[%clk
0:01:34.4]} 21. Bc6 {[%clk 0:01:37]} 21... d5 {[%clk 0:01:31.5]} 22. a5 {[%clk
0:01:35.4]} 22... Qf6 {[%clk 0:01:15]} 23. Qd4 {[%clk 0:01:17.3]} 23... Qf3
{[%clk 0:01:12.6]} 24. a6 {[%clk 0:01:06.2]} 1-0

[Event "Late-Titled-Tuesday-Blitz-May-28-2024"]
[Site "Chess.com"]
[Date "2024.05.28"]
[Round "6"]
[White "Rodalquilar"]
[Black "Oleksandr_Bortnyk"]
[Result "0-1"]
[WhiteElo "2807"]
[BlackElo "3025"]
[TimeControl "180+1"]
[EndTime "15:05:10 PDT"]
[Termination "Oleksandr_Bortnyk won by resignation"]

1. d4 {[%clk 0:03:00.9]} 1... Nf6 {[%clk 0:02:58.8]} 2. Nf3 {[%clk 0:03:01.1]}
2... d6 {[%clk 0:02:59.2]} 3. Bf4 {[%clk 0:03:01]} 3... b6 {[%clk 0:02:58.8]} 4.
e3 {[%clk 0:02:58.8]} 4... Bb7 {[%clk 0:02:59.7]} 5. Be2 {[%clk 0:02:58.4]} 5...
Nbd7 {[%clk 0:03:00.4]} 6. O-O {[%clk 0:02:56.2]} 6... e6 {[%clk 0:02:58.3]} 7.
h3 {[%clk 0:02:55.7]} 7... Be7 {[%clk 0:02:58.5]} 8. a4 {[%clk 0:02:52.3]} 8...
a5 {[%clk 0:02:57.6]} 9. Nbd2 {[%clk 0:02:50.7]} 9... h6 {[%clk 0:02:57.3]} 10.
Re1 {[%clk 0:02:46]} 10... g5 {[%clk 0:02:58.2]} 11. Bg3 {[%clk 0:02:45]} 11...
g4 {[%clk 0:02:58.4]} 12. hxg4 {[%clk 0:02:44.9]} 12... Nxg4 {[%clk 0:02:59.3]}
13. Nh2 {[%clk 0:02:34.8]} 13... h5 {[%clk 0:02:59.9]} 14. Bf3 {[%clk
0:02:34.3]} 14... d5 {[%clk 0:02:58.6]} 15. Nxg4 {[%clk 0:02:33.1]} 15... hxg4
{[%clk 0:02:58.8]} 16. Bxg4 {[%clk 0:02:33.6]} 16... Nf6 {[%clk 0:02:58]} 17.
Bf3 {[%clk 0:02:32.7]} 17... Bd6 {[%clk 0:02:57.4]} 18. Nf1 {[%clk 0:02:29.5]}
18... Ba6 {[%clk 0:02:55.3]} 19. Bxd6 {[%clk 0:02:27.2]} 19... Qxd6 {[%clk
0:02:56.2]} 20. Ng3 {[%clk 0:02:27.7]} 20... O-O-O {[%clk 0:02:55.8]} 21. c3
{[%clk 0:02:24.9]} 21... Rh4 {[%clk 0:02:52.1]} 22. e4 {[%clk 0:02:15.5]} 22...
dxe4 {[%clk 0:02:50.8]} 23. Bxe4 {[%clk 0:02:14.8]} 23... Rdh8 {[%clk
0:02:48.1]} 24. f4 {[%clk 0:01:41.8]} 24... Qxf4 {[%clk 0:01:53.5]} 25. Qf3
{[%clk 0:01:37.4]} 25... Qg5 {[%clk 0:01:52.6]} 26. Rf1 {[%clk 0:01:17.7]} 26...
Qxg3 {[%clk 0:01:25.7]} 27. Qxg3 {[%clk 0:00:30.1]} 27... Rh1+ {[%clk
0:01:25.1]} 28. Kf2 {[%clk 0:00:30.7]} 28... Nxe4+ {[%clk 0:01:25.9]} 29. Kf3
{[%clk 0:00:31.1]} 29... Nxg3 {[%clk 0:01:24]} 30. Rxh1 {[%clk 0:00:29.9]} 30...
Rxh1 {[%clk 0:01:23.7]} 31. Kxg3 {[%clk 0:00:24.8]} 31... Rxa1 {[%clk
0:01:23.2]} 0-1

[Event "Late-Titled-Tuesday-Blitz-May-28-2024"]
[Site "Chess.com"]
[Date "2024.05.28"]
[Round "6"]
[White "zsizsi99"]
[Black "Iball95"]
[Result "0-1"]
[WhiteElo "2568"]
[BlackElo "2854"]
[TimeControl "180+1"]
[EndTime "15:05:14 PDT"]
[Termination "Iball95 won by checkmate"]

1. e4 {[%clk 0:03:00.9]} 1... c5 {[%clk 0:02:59.8]} 2. Nf3 {[%clk 0:03:00.8]}
2... e6 {[%clk 0:03:00.3]} 3. d4 {[%clk 0:02:57.6]} 3... cxd4 {[%clk 0:03:01.2]}
4. Nxd4 {[%clk 0:02:57.9]} 4... Nf6 {[%clk 0:03:01.5]} 5. Nc3 {[%clk 0:02:56.2]}
5... Nc6 {[%clk 0:03:02]} 6. Ndb5 {[%clk 0:02:53.1]} 6... Bc5 {[%clk 0:03:01.4]}
7. Bf4 {[%clk 0:02:50.4]} 7... O-O {[%clk 0:03:00.4]} 8. Bc7 {[%clk 0:02:50.8]}
8... Qe7 {[%clk 0:03:00.9]} 9. Bd6 {[%clk 0:02:51.4]} 9... Bxd6 {[%clk
0:03:01.4]} 10. Qxd6 {[%clk 0:02:49.7]} 10... Qd8 {[%clk 0:03:01.8]} 11. Qc7
{[%clk 0:02:49.8]} 11... Qe7 {[%clk 0:02:59.8]} 12. Nd6 {[%clk 0:02:45.9]} 12...
Ne8 {[%clk 0:02:47.4]} 13. Nxe8 {[%clk 0:02:45]} 13... Rxe8 {[%clk 0:02:48.3]}
14. O-O-O {[%clk 0:02:44]} 14... a6 {[%clk 0:02:39.4]} 15. Qd6 {[%clk 0:02:35]}
15... b5 {[%clk 0:02:30.6]} 16. Qxe7 {[%clk 0:02:32.4]} 16... Rxe7 {[%clk
0:02:31.5]} 17. f3 {[%clk 0:02:26.8]} 17... Bb7 {[%clk 0:02:28.8]} 18. Rd6
{[%clk 0:02:25.7]} 18... Rc8 {[%clk 0:02:25.5]} 19. Be2 {[%clk 0:02:24.1]} 19...
Kf8 {[%clk 0:02:24.8]} 20. Rhd1 {[%clk 0:02:23.5]} 20... Rc7 {[%clk 0:02:24.7]}
21. a3 {[%clk 0:02:12.9]} 21... f6 {[%clk 0:02:20]} 22. g4 {[%clk 0:01:58.8]}
22... Ke8 {[%clk 0:02:06.4]} 23. h4 {[%clk 0:01:58.7]} 23... Rf7 {[%clk
0:01:54]} 24. f4 {[%clk 0:01:50.8]} 24... Ke7 {[%clk 0:01:52.9]} 25. b3 {[%clk
0:01:25.2]} 25... Rf8 {[%clk 0:01:48.7]} 26. Kb2 {[%clk 0:01:25]} 26... Rfc8
{[%clk 0:01:47.9]} 27. R1d3 {[%clk 0:01:21.2]} 27... Nd8 {[%clk 0:01:36.5]} 28.
R6d4 {[%clk 0:00:53.3]} 28... Nc6 {[%clk 0:01:33.4]} 29. Rd6 {[%clk 0:00:52.1]}
29... Nd8 {[%clk 0:01:23.7]} 30. R6d4 {[%clk 0:00:50.6]} 30... e5 {[%clk
0:01:23.9]} 31. fxe5 {[%clk 0:00:43.6]} 31... fxe5 {[%clk 0:01:24.8]} 32. Rd6
{[%clk 0:00:44.1]} 32... Bxe4 {[%clk 0:01:21.7]} 33. Nxe4 {[%clk 0:00:38.8]}
33... Rxc2+ {[%clk 0:01:20.8]} 34. Kb1 {[%clk 0:00:34.9]} 34... Rc1+ {[%clk
0:01:20.7]} 35. Kb2 {[%clk 0:00:34.6]} 35... R8c2# {[%clk 0:01:21.3]} 0-1

[Event "Late-Titled-Tuesday-Blitz-May-28-2024"]
[Site "Chess.com"]
[Date "2024.05.28"]
[Round "6"]
[White "maurovargas01"]
[Black "DonPreuss"]
[Result "1-0"]
[WhiteElo "1931"]
[BlackElo "2263"]
[TimeControl "180+1"]
[EndTime "15:05:17 PDT"]
[Termination "maurovargas01 won by resignation"]

1. e4 {[%clk 0:02:59.7]} 1... Nc6 {[%clk 0:02:59.9]} 2. Nc3 {[%clk 0:02:58.7]}
2... e5 {[%clk 0:03:00.8]} 3. Bc4 {[%clk 0:02:57.6]} 3... d6 {[%clk 0:03:01.1]}
4. d4 {[%clk 0:02:57.5]} 4... exd4 {[%clk 0:03:00]} 5. Nb5 {[%clk 0:02:54.2]}
5... Be6 {[%clk 0:02:55.6]} 6. Bxe6 {[%clk 0:02:49.9]} 6... fxe6 {[%clk
0:02:56.5]} 7. Nxd4 {[%clk 0:02:47.1]} 7... e5 {[%clk 0:02:56.9]} 8. Ne6 {[%clk
0:02:37.7]} 8... Qe7 {[%clk 0:02:53.9]} 9. Nxf8 {[%clk 0:02:36.8]} 9... Qxf8
{[%clk 0:02:53.5]} 10. Qh5+ {[%clk 0:02:35.9]} 10... g6 {[%clk 0:02:53.2]} 11.
Qh3 {[%clk 0:02:32.1]} 11... Qe7 {[%clk 0:02:51.8]} 12. Nf3 {[%clk 0:02:28.9]}
12... Nf6 {[%clk 0:02:36.8]} 13. Bg5 {[%clk 0:02:27.1]} 13... O-O {[%clk
0:02:36.9]} 14. Bh6 {[%clk 0:02:23.8]} 14... Rfe8 {[%clk 0:02:34.7]} 15. Bg5
{[%clk 0:02:14.8]} 15... Qe6 {[%clk 0:02:31.8]} 16. Qh4 {[%clk 0:02:11.4]} 16...
Nd4 {[%clk 0:02:16.8]} 17. Bxf6 {[%clk 0:02:08.3]} 17... Nxc2+ {[%clk
0:02:12.3]} 18. Kd2 {[%clk 0:02:04.5]} 18... Nxa1 {[%clk 0:02:06.1]} 19. Rxa1
{[%clk 0:02:04.3]} 19... Rf8 {[%clk 0:02:02.2]} 20. Bg5 {[%clk 0:01:57.9]} 20...
Qc4 {[%clk 0:01:57.9]} 21. b3 {[%clk 0:01:52.4]} 21... Qb4+ {[%clk 0:01:56]} 22.
Kc2 {[%clk 0:01:51.6]} 22... Qc5+ {[%clk 0:01:55.9]} 23. Kb2 {[%clk 0:01:50.2]}
23... a5 {[%clk 0:01:46.2]} 24. Rc1 {[%clk 0:01:49.5]} 24... Qb6 {[%clk
0:01:40.6]} 25. Be3 {[%clk 0:01:49.1]} 25... Qb5 {[%clk 0:01:38.2]} 26. Rxc7
{[%clk 0:01:46.9]} 26... Rf7 {[%clk 0:01:38.6]} 27. Rxf7 {[%clk 0:01:43.1]}
27... Kxf7 {[%clk 0:01:35.1]} 28. Qxh7+ {[%clk 0:01:42.8]} 28... Ke8 {[%clk
0:01:32.8]} 29. Qg8+ {[%clk 0:01:39.6]} 29... Kd7 {[%clk 0:01:32.2]} 30. Qxa8
{[%clk 0:01:39.5]} 30... Qe2+ {[%clk 0:01:32.3]} 31. Nd2 {[%clk 0:01:38.7]}
31... Qb5 {[%clk 0:01:25.3]} 32. Qg8 {[%clk 0:01:27.8]} 32... a4 {[%clk
0:01:23.5]} 33. Qxg6 {[%clk 0:01:15.5]} 33... Qb4 {[%clk 0:01:06.9]} 34. Qf7+
{[%clk 0:01:04.2]} 34... Kd8 {[%clk 0:01:00.1]} 35. Bg5+ {[%clk 0:00:59.9]}
35... Kc8 {[%clk 0:00:59.7]} 36. Qc4+ {[%clk 0:00:59.6]} 1-0

[Event "Late-Titled-Tuesday-Blitz-May-28-2024"]
[Site "Chess.com"]
[Date "2024.05.28"]
[Round "6"]
[White "DanielNaroditsky"]
[Black "kirillshevchenko"]
[Result "1-0"]
[WhiteElo "3083"]
[BlackElo "2903"]
[TimeControl "180+1"]
[EndTime "15:05:20 PDT"]
[Termination "DanielNaroditsky won by resignation"]

1. e4 {[%clk 0:03:00.9]} 1... b6 {[%clk 0:02:59.5]} 2. d4 {[%clk 0:02:59.1]}
2... Bb7 {[%clk 0:03:00.2]} 3. Bd3 {[%clk 0:02:59.6]} 3... d6 {[%clk 0:03:00.6]}
4. Nf3 {[%clk 0:02:59.1]} 4... Nd7 {[%clk 0:03:01.1]} 5. Nc3 {[%clk 0:02:56.4]}
5... e6 {[%clk 0:02:44.8]} 6. Ne2 {[%clk 0:02:49.3]} 6... Ne7 {[%clk 0:02:44.1]}
7. h4 {[%clk 0:02:47.5]} 7... h6 {[%clk 0:02:32]} 8. h5 {[%clk 0:02:48.1]} 8...
Nf6 {[%clk 0:02:14.5]} 9. Ng3 {[%clk 0:02:48]} 9... d5 {[%clk 0:02:03.2]} 10. e5
{[%clk 0:02:48.1]} 10... Ne4 {[%clk 0:02:03.7]} 11. Qe2 {[%clk 0:02:47.9]} 11...
Nxg3 {[%clk 0:01:58]} 12. fxg3 {[%clk 0:02:48.8]} 12... Qd7 {[%clk 0:01:54.4]}
13. g4 {[%clk 0:02:45.3]} 13... c5 {[%clk 0:01:52.1]} 14. c3 {[%clk 0:02:45.6]}
14... Nc6 {[%clk 0:01:50.1]} 15. O-O {[%clk 0:02:42.7]} 15... Be7 {[%clk
0:01:48.9]} 16. Be3 {[%clk 0:02:40.2]} 16... c4 {[%clk 0:01:42.1]} 17. Bc2
{[%clk 0:02:40.4]} 17... O-O-O {[%clk 0:01:39.4]} 18. b3 {[%clk 0:02:40.3]}
18... Ba6 {[%clk 0:01:34.6]} 19. Nd2 {[%clk 0:02:31.5]} 19... f6 {[%clk
0:01:31.2]} 20. exf6 {[%clk 0:02:26.5]} 20... Bxf6 {[%clk 0:01:30.4]} 21. bxc4
{[%clk 0:02:27]} 21... Kb8 {[%clk 0:00:59.6]} 22. Bd3 {[%clk 0:02:23.3]} 22...
e5 {[%clk 0:00:58.4]} 23. cxd5 {[%clk 0:02:09.6]} 23... Bxd3 {[%clk 0:00:58.1]}
24. Qxd3 {[%clk 0:02:10.5]} 24... Qxd5 {[%clk 0:00:53.6]} 25. c4 {[%clk
0:02:10.7]} 25... Qd7 {[%clk 0:00:51]} 26. d5 {[%clk 0:02:11.1]} 26... Qxg4
{[%clk 0:00:48.7]} 27. Ne4 {[%clk 0:02:02]} 27... Nb4 {[%clk 0:00:46.9]} 28. Qb1
{[%clk 0:02:02.2]} 28... Qe2 {[%clk 0:00:45.8]} 29. Bxb6 {[%clk 0:01:56]} 29...
axb6 {[%clk 0:00:33.1]} 30. Qxb4 {[%clk 0:01:55]} 30... Qe3+ {[%clk 0:00:27.2]}
31. Kh1 {[%clk 0:01:55.4]} 31... Rd7 {[%clk 0:00:23.4]} 32. Rfe1 {[%clk
0:01:50.2]} 32... Qf4 {[%clk 0:00:22]} 33. Qxb6+ {[%clk 0:01:44.8]} 33... Rb7
{[%clk 0:00:22.3]} 34. Qd6+ {[%clk 0:01:41.2]} 34... Ka7 {[%clk 0:00:22.6]} 35.
Qa3+ {[%clk 0:01:32.4]} 35... Kb8 {[%clk 0:00:22.6]} 36. Rab1 {[%clk 0:01:31.3]}
1-0

[Event "Late-Titled-Tuesday-Blitz-May-28-2024"]
[Site "Chess.com"]
[Date "2024.05.28"]
[Round "6"]
[White "Agustin_Meza"]
[Black "Beaterawn"]
[Result "0-1"]
[WhiteElo "2177"]
[BlackElo "2370"]
[TimeControl "180+1"]
[EndTime "15:05:25 PDT"]
[Termination "Beaterawn won by resignation"]

1. Nf3 {[%clk 0:02:59.9]} 1... f5 {[%clk 0:02:59.3]} 2. d3 {[%clk 0:02:59.1]}
2... d5 {[%clk 0:02:58.7]} 3. g3 {[%clk 0:02:56.9]} 3... Nf6 {[%clk 0:02:57.7]}
4. Bg2 {[%clk 0:02:57.3]} 4... e6 {[%clk 0:02:58.2]} 5. O-O {[%clk 0:02:57.6]}
5... Bd6 {[%clk 0:02:58.8]} 6. Nbd2 {[%clk 0:02:56.6]} 6... O-O {[%clk
0:02:59.3]} 7. e4 {[%clk 0:02:56.4]} 7... fxe4 {[%clk 0:02:29.4]} 8. dxe4 {[%clk
0:02:57.3]} 8... dxe4 {[%clk 0:02:29.4]} 9. Ng5 {[%clk 0:02:57.7]} 9... e3
{[%clk 0:02:22.7]} 10. Nde4 {[%clk 0:02:48.1]} 10... h6 {[%clk 0:02:04.8]} 11.
Nxf6+ {[%clk 0:02:44.9]} 11... Rxf6 {[%clk 0:01:52.7]} 12. Ne4 {[%clk
0:02:39.7]} 12... exf2+ {[%clk 0:01:52.3]} 13. Rxf2 {[%clk 0:02:34.3]} 13...
Rxf2 {[%clk 0:01:50.7]} 14. Nxf2 {[%clk 0:02:35.2]} 14... Qe7 {[%clk 0:01:30.4]}
15. Be3 {[%clk 0:02:33.2]} 15... Nc6 {[%clk 0:01:27.7]} 16. Qh5 {[%clk 0:02:20]}
16... Bd7 {[%clk 0:01:23.3]} 17. Re1 {[%clk 0:02:19.3]} 17... Rf8 {[%clk
0:01:15.9]} 18. Ng4 {[%clk 0:02:13]} 18... Rf5 {[%clk 0:00:57.3]} 19. Qh3 {[%clk
0:02:05.1]} 19... e5 {[%clk 0:00:32.6]} 20. Bd5+ {[%clk 0:01:55.8]} 20... Kh8
{[%clk 0:00:32.5]} 21. Be4 {[%clk 0:01:47]} 21... Rg5 {[%clk 0:00:19.4]} 22.
Bxg5 {[%clk 0:01:42.1]} 22... Qxg5 {[%clk 0:00:20.3]} 23. Bf3 {[%clk 0:01:42.7]}
23... Nd4 {[%clk 0:00:19.8]} 24. Bd1 {[%clk 0:01:25.6]} 24... Bc5 {[%clk
0:00:20]} 25. Nxh6 {[%clk 0:01:14.7]} 25... Ne2+ {[%clk 0:00:19.5]} 0-1

[Event "Late-Titled-Tuesday-Blitz-May-28-2024"]
[Site "Chess.com"]
[Date "2024.05.28"]
[Round "6"]
[White "aval7an"]
[Black "szachmistrz2500"]
[Result "1-0"]
[WhiteElo "2687"]
[BlackElo "2514"]
[TimeControl "180+1"]
[EndTime "15:05:28 PDT"]
[Termination "aval7an won by resignation"]

1. d4 {[%clk 0:03:00.5]} 1... d5 {[%clk 0:02:59.1]} 2. c4 {[%clk 0:02:54.5]}
2... e6 {[%clk 0:02:56.6]} 3. Nc3 {[%clk 0:02:54.9]} 3... Nf6 {[%clk 0:02:56.6]}
4. cxd5 {[%clk 0:02:55.3]} 4... exd5 {[%clk 0:02:56.2]} 5. Bg5 {[%clk
0:02:56.2]} 5... c6 {[%clk 0:02:54.9]} 6. e3 {[%clk 0:02:56.4]} 6... Bd6 {[%clk
0:02:52.8]} 7. Qc2 {[%clk 0:02:55.3]} 7... Nbd7 {[%clk 0:02:52]} 8. Bd3 {[%clk
0:02:52.9]} 8... Nf8 {[%clk 0:02:50.9]} 9. Nge2 {[%clk 0:02:46.1]} 9... Ng6
{[%clk 0:02:50.7]} 10. f3 {[%clk 0:02:41.1]} 10... h6 {[%clk 0:02:48]} 11. Bf4
{[%clk 0:02:22.6]} 11... Nxf4 {[%clk 0:02:43.3]} 12. exf4 {[%clk 0:02:15.4]}
12... Qc7 {[%clk 0:02:35.5]} 13. g3 {[%clk 0:02:13.3]} 13... Bh3 {[%clk
0:02:32.5]} 14. Kf2 {[%clk 0:02:12.5]} 14... O-O {[%clk 0:02:22.3]} 15. g4
{[%clk 0:02:06.5]} 15... Bxf4 {[%clk 0:02:21.3]} 16. Ng1 {[%clk 0:01:28.2]}
16... Bxg4 {[%clk 0:02:18.4]} 17. fxg4 {[%clk 0:01:28.6]} 17... Nxg4+ {[%clk
0:02:18.5]} 18. Kf3 {[%clk 0:01:27.3]} 18... Ne3 {[%clk 0:01:47.3]} 19. Qf2
{[%clk 0:01:21.7]} 19... h5 {[%clk 0:01:28.7]} 20. Nh3 {[%clk 0:01:12.7]} 20...
Bh6 {[%clk 0:01:26.1]} 21. Qh4 {[%clk 0:01:06.3]} 21... Rae8 {[%clk 0:01:18.9]}
22. Qxh5 {[%clk 0:00:58.2]} 22... Qb6 {[%clk 0:01:14.1]} 23. Rhg1 {[%clk
0:00:39.9]} 23... Kh8 {[%clk 0:01:10.3]} 24. Rxg7 {[%clk 0:00:35]} 24... c5
{[%clk 0:01:01.5]} 25. Rh7+ {[%clk 0:00:30.6]} 25... Kg8 {[%clk 0:01:00.5]} 26.
Rg1+ {[%clk 0:00:31.5]} 1-0

[Event "Late-Titled-Tuesday-Blitz-May-28-2024"]
[Site "Chess.com"]
[Date "2024.05.28"]
[Round "6"]
[White "Caracal3000"]
[Black "RichardShtivelband"]
[Result "1-0"]
[WhiteElo "2572"]
[BlackElo "2385"]
[TimeControl "180+1"]
[EndTime "15:05:34 PDT"]
[Termination "Caracal3000 won by resignation"]

1. e4 {[%clk 0:03:00.9]} 1... e5 {[%clk 0:02:59.2]} 2. Nf3 {[%clk 0:03:01.1]}
2... Nc6 {[%clk 0:02:59.1]} 3. Nc3 {[%clk 0:03:01.7]} 3... Nf6 {[%clk
0:02:58.5]} 4. d4 {[%clk 0:03:02.4]} 4... exd4 {[%clk 0:02:58.7]} 5. Nxd4 {[%clk
0:03:03.3]} 5... d6 {[%clk 0:02:58.1]} 6. Bc4 {[%clk 0:02:56.2]} 6... Be7 {[%clk
0:02:56.7]} 7. O-O {[%clk 0:02:55.8]} 7... O-O {[%clk 0:02:56.6]} 8. h3 {[%clk
0:02:55.9]} 8... Re8 {[%clk 0:02:55.5]} 9. Re1 {[%clk 0:02:49.8]} 9... Bf8
{[%clk 0:02:54.3]} 10. Nxc6 {[%clk 0:02:38.6]} 10... bxc6 {[%clk 0:02:53.6]} 11.
e5 {[%clk 0:02:39.2]} 11... dxe5 {[%clk 0:02:29.7]} 12. Qxd8 {[%clk 0:02:40.1]}
12... Rxd8 {[%clk 0:02:29.9]} 13. Rxe5 {[%clk 0:02:40.1]} 13... Bd6 {[%clk
0:02:29.3]} 14. Re1 {[%clk 0:02:35.8]} 14... Bf5 {[%clk 0:02:28.9]} 15. Bb3
{[%clk 0:02:31.1]} 15... Bb4 {[%clk 0:02:25.9]} 16. Bg5 {[%clk 0:02:27.7]} 16...
Kf8 {[%clk 0:01:52.6]} 17. Re5 {[%clk 0:02:15.2]} 17... Bg6 {[%clk 0:01:44.5]}
18. Rae1 {[%clk 0:02:12.6]} 18... h6 {[%clk 0:01:33]} 19. Bxf6 {[%clk
0:01:52.8]} 19... gxf6 {[%clk 0:01:33.9]} 20. R5e2 {[%clk 0:01:53.4]} 20... a5
{[%clk 0:01:20.1]} 21. a3 {[%clk 0:01:49.4]} 21... Bxc3 {[%clk 0:01:19.4]} 22.
bxc3 {[%clk 0:01:49.9]} 22... a4 {[%clk 0:01:19.3]} 23. Bc4 {[%clk 0:01:49]}
23... Rab8 {[%clk 0:01:19]} 24. Re7 {[%clk 0:01:38.7]} 24... Rd2 {[%clk
0:01:08]} 25. Rxc7 {[%clk 0:01:35.1]} 25... Rxc2 {[%clk 0:00:56.5]} 26. Ree7
{[%clk 0:01:27]} 26... Rb1+ {[%clk 0:00:56]} 27. Kh2 {[%clk 0:01:27.2]} 27...
Rxf2 {[%clk 0:00:55.7]} 28. Bxf7 {[%clk 0:01:23.8]} 28... Bxf7 {[%clk
0:00:30.9]} 29. Rxf7+ {[%clk 0:01:24.7]} 29... Ke8 {[%clk 0:00:31]} 30. Rg7
{[%clk 0:01:06.2]} 30... Kd8 {[%clk 0:00:30]} 31. Ra7 {[%clk 0:01:00.2]} 1-0